fUST/lending_fUST_20250530
["ID","MTS","AMOUNT","RATE_DAILY","PERIOD"]
[363094663,1748574647415,-430.0,0.00019726,2]
[363094665,1748574647424,-370.0,0.00019726,2]
[363094666,1748574647433,-426.19561167,0.00019726,2]
[363094668,1748574647443,-151.0,0.00019726,2]
[363094670,1748574647452,-430.0,0.00019726,2]
[363094672,1748574647464,-599.6,0.00019726,2]
[363094674,1748574647474,-430.0,0.00019726,2]
[363094676,1748574647484,-530.0,0.00019726,2]
[363094678,1748574647493,-430.0,0.00019726,2]
[363094680,1748574647506,-430.0,0.00019726,2]
[363094682,1748574647525,-430.0,0.00019726,2]
[363094684,1748574647546,-151.0,0.00019726,2]
[363094686,1748574647556,-482.34572658,0.00019726,2]
[363094688,1748574647566,-430.0,0.00019726,2]
[363094690,1748574647575,-430.0,0.00019726,2]
[363094692,1748574647584,-430.0,0.00019726,2]
[363094694,1748574647595,-430.0,0.00019726,2]
[363094696,1748574647604,-212.19291,0.00019726,2]
[363094697,1748574647613,-430.0,0.00019726,2]
[363094699,1748574647623,-430.0,0.00019726,2]
[363094701,1748574647632,-430.0,0.00019726,2]
[363094703,1748574647640,-430.0,0.00019726,2]
[363094705,1748574647650,-1785.18,0.00019726,2]
[363094707,1748574647659,-430.0,0.00019726,2]
[363094709,1748574647668,-430.0,0.00019726,2]
[363094711,1748574647677,-430.0,0.00019726,2]
[363094713,1748574647687,-1527.315921,0.00019726,2]
[363094715,1748574647696,-430.0,0.00019726,2]
[363094717,1748574647705,-430.0,0.00019726,2]
[363094718,1748574647714,-425.85643897,0.00019726,2]
[363094720,1748574647723,-1527.315921,0.00019726,2]
[363094722,1748574647733,-430.0,0.00019726,2]
[363094724,1748574647742,-430.0,0.00019726,2]
[363094726,1748574647751,-430.0,0.00019726,2]
[363094728,1748574647759,-430.0,0.00019726,2]
[363094730,1748574647769,-430.0,0.00019726,2]
[363094732,1748574647778,-351.70051939,0.00019726,2]
[363094734,1748574647787,-594.81,0.00019726,2]
[363094736,1748574647796,-692.92,0.00019726,2]
[363094738,1748574647805,-430.0,0.00019726,2]
[363094740,1748574647814,-299.01865343,0.00019726,2]
[363094742,1748574647832,-225.57134657,0.00019726,2]
[363094744,1748574647841,-1006.77,0.00019726,2]
[363094746,1748574647850,-905.04,0.00019726,2]
[363094748,1748574647860,-277.784087,0.00019726,2]
[363094750,1748574647869,-430.0,0.00019726,2]
[363094752,1748574647879,-1493.98,0.00019726,2]
[363094754,1748574647888,-277.784087,0.00019726,2]
[363094756,1748574647898,-470.34667501,0.00019726,2]
[363094758,1748574647908,-430.0,0.00019726,2]
[363094760,1748574647917,-151.0,0.00019726,2]
[363094762,1748574647927,-430.0,0.00019726,2]
[363094764,1748574647937,-151.0,0.00019726,2]
[363094766,1748574647947,-151.0,0.00019726,2]
[363094768,1748574647956,-858.72,0.00019726,2]
[363094769,1748574647966,-430.0,0.00019726,2]
[363094771,1748574647975,-430.0,0.00019726,2]
[363094773,1748574647985,-430.0,0.00019726,2]
[363094775,1748574647995,-430.0,0.00019726,2]
[363094777,1748574648004,-2700.21096505,0.00019726,2]
[363094779,1748574648016,-1372.04903495,0.00019726,2]
[363094781,1748574648025,-430.0,0.00019726,2]
[363094783,1748574648035,-430.0,0.00019726,2]
[363094785,1748574648045,-153.55191924,0.00019726,2]
[363094788,1748574648067,-197.26060975,0.00019452,2]
[363094790,1748574648076,-381.63808076,0.00019726,2]
[363094792,1748574648086,-430.0,0.00019726,2]
[363094794,1748574648096,-350.07224278,0.00019726,2]
[363094796,1748574648106,-2.40351523,0.00019726,2]
[363094805,1748574648198,-300.0,0.00019177,2]
[363094806,1748574648206,-430.0,0.00019178,2]
[363094807,1748574648215,-435.02829609,0.00019178,2]
[363094808,1748574648224,-430.0,0.00019178,2]
[363094809,1748574648233,-430.0,0.00019452,2]
[363094810,1748574648242,-427.59648477,0.00019726,2]
[363094811,1748574648251,-234.01723997,0.00019726,2]
[363094812,1748574648260,-430.0,0.00019726,2]
[363094813,1748574648270,-430.0,0.00019726,2]
[363094814,1748574648279,-151.0,0.00019726,2]
[363094815,1748574648288,-430.0,0.00019726,2]
[363094816,1748574648297,-430.0,0.00019726,2]
[363094817,1748574648307,-430.0,0.00019726,2]
[363094818,1748574648316,-430.0,0.00019726,2]
[363094819,1748574648327,-442.08754477,0.00019726,2]
[363094820,1748574648336,-843.64,0.00019726,2]
[363094821,1748574648346,-151.0,0.00019726,2]
[363094822,1748574648355,-2045.26,0.00019726,2]
[363094823,1748574648364,-430.0,0.00019726,2]
[363094824,1748574648374,-430.0,0.00019726,2]
[363094825,1748574648383,-4939.27,0.00019726,2]
[363094826,1748574648392,-957.35,0.00019726,2]
[363094827,1748574648401,-151.0,0.00019726,2]
[363094828,1748574648410,-441.09908079,0.00019726,2]
[363094829,1748574648419,-430.0,0.00019726,2]
[363094830,1748574648428,-493.27,0.00019726,2]
[363094831,1748574648437,-430.0,0.00019726,2]
[363094833,1748574648447,-470.0,0.00019726,2]
[363094835,1748574648456,-430.0,0.00019726,2]
[363094837,1748574648468,-430.0,0.00019726,2]
[363094838,1748574648477,-430.0,0.00019726,2]
[363094840,1748574648486,-430.0,0.00019726,2]
[363094842,1748574648495,-1458.7733341,0.00019726,2]
[363094860,1748574648659,-2029.0366659,0.00019726,2]
[363094862,1748574648668,-57.816821,0.00019726,2]
[363094864,1748574648680,-372.183179,0.00019726,2]
[363094866,1748574648690,-151.0,0.00019726,2]
[363094868,1748574648699,-438.75,0.00019726,2]
[363094870,1748574648709,-151.0,0.00019726,2]
[363094872,1748574648718,-4979.44075681,0.00019726,2]
[363094874,1748574648730,-358.51924319,0.00019726,2]
[363094876,1748574648739,-430.0,0.00019726,2]
[363094878,1748574648748,-430.0,0.00019726,2]
[363094880,1748574648758,-430.0,0.00019726,2]
[363094893,1748574648871,-2931.48075607,0.00019726,2]
[363094895,1748574648883,-1947.44168225,0.00019726,2]
[363094897,1748574648895,-344.95327808,0.00019726,2]
[363094900,1748574648907,-691.95583024,0.00019726,2]
[363094934,1748574649250,-430.0,0.00019178,2]
[363094936,1748574649260,-430.0,0.00019178,2]
[363094938,1748574649270,-430.0,0.00019452,2]
[363094941,1748574649281,-846.69845336,0.00019726,2]
[363094943,1748574649291,-430.0,0.00019726,2]
[363094945,1748574649301,-430.0,0.00019726,2]
[363094946,1748574649311,-430.0,0.00019726,2]
[363094949,1748574649322,-430.0,0.00019726,2]
[363094951,1748574649331,-430.0,0.00019726,2]
[363094952,1748574649340,-430.0,0.00019726,2]
[363094954,1748574649351,-569.59,0.00019726,2]
[363094957,1748574649362,-1345.67,0.00019726,2]
[363094958,1748574649372,-430.0,0.00019726,2]
[363094960,1748574649381,-204.688878,0.00019726,2]
[363094962,1748574649391,-151.0,0.00019726,2]
[363094964,1748574649401,-430.0,0.00019726,2]
[363094966,1748574649411,-204.688878,0.00019726,2]
[363094968,1748574649422,-1695.92,0.00019726,2]
[363094971,1748574649432,-430.0,0.00019726,2]
[363094973,1748574649443,-867.05,0.00019726,2]
[363094975,1748574649452,-151.0,0.00019726,2]
[363094977,1748574649463,-430.0,0.00019726,2]
[363094979,1748574649475,-1328.6,0.00019726,2]
[363094981,1748574649485,-430.0,0.00019726,2]
[363094983,1748574649494,-430.0,0.00019726,2]
[363094985,1748574649504,-728.43,0.00019726,2]
[363094987,1748574649515,-430.0,0.00019726,2]
[363094989,1748574649525,-795.95,0.00019726,2]
[363094991,1748574649534,-672.43,0.00019726,2]
[363094993,1748574649545,-430.0,0.00019726,2]
[363094995,1748574649554,-247.69284596,0.00019726,2]
[363094997,1748574649564,-430.0,0.00019726,2]
[363094999,1748574649573,-430.0,0.00019726,2]
[363095001,1748574649583,-430.0,0.00019726,2]
[363095003,1748574649593,-1038.75,0.00019726,2]
[363095005,1748574649602,-430.0,0.00019726,2]
[363095007,1748574649612,-151.0,0.00019726,2]
[363095009,1748574649621,-430.0,0.00019726,2]
[363095011,1748574649631,-430.0,0.00019726,2]
[363095013,1748574649640,-242.62,0.00019726,2]
[363095015,1748574649650,-1127.4,0.00019726,2]
[363095017,1748574649660,-430.0,0.00019726,2]
[363095019,1748574649669,-430.0,0.00019726,2]
[363095021,1748574649679,-430.0,0.00019726,2]
[363095023,1748574649689,-430.0,0.00019726,2]
[363095025,1748574649698,-430.0,0.00019726,2]
[363095027,1748574649709,-430.0,0.00019726,2]
[363095029,1748574649718,-450.0,0.00019726,2]
[363095031,1748574649728,-430.0,0.00019726,2]
[363095033,1748574649738,-430.0,0.00019726,2]
[363095035,1748574649747,-979.95,0.00019726,2]
[363095037,1748574649757,-3264.04,0.00019726,2]
[363095039,1748574649766,-430.0,0.00019726,2]
[363095041,1748574649775,-472.23925919,0.00019726,2]
[363095043,1748574649785,-1256.16,0.00019726,2]
[363095045,1748574649794,-151.0,0.00019726,2]
[363095047,1748574649803,-430.0,0.00019726,2]
[363095049,1748574649812,-430.0,0.00019726,2]
[363095051,1748574649821,-430.0,0.00019726,2]
[363095052,1748574649831,-151.0,0.00019726,2]
[363095055,1748574649840,-430.0,0.00019726,2]
[363095056,1748574649851,-3984.9,0.00019726,2]
[363095059,1748574649860,-2285.4,0.00019726,2]
[363095060,1748574649870,-430.0,0.00019726,2]
[363095063,1748574649881,-481.94,0.00019726,2]
[363095064,1748574649891,-430.0,0.00019726,2]
[363095066,1748574649902,-430.0,0.00019726,2]
[363095068,1748574649911,-430.0,0.00019726,2]
[363095070,1748574649921,-430.0,0.00019726,2]
[363095072,1748574649930,-430.0,0.00019726,2]
[363095074,1748574649940,-1129.81,0.00019726,2]
[363095076,1748574649950,-430.0,0.00019726,2]
[363095078,1748574649959,-430.0,0.00019726,2]
[363095081,1748574649970,-442.15,0.00019726,2]
[363095082,1748574649979,-430.0,0.00019726,2]
[363095084,1748574649989,-430.0,0.00019726,2]
[363095086,1748574649999,-430.0,0.00019726,2]
[363095089,1748574650008,-430.0,0.00019726,2]
[363095090,1748574650018,-430.0,0.00019726,2]
[363095093,1748574650028,-430.0,0.00019726,2]
[363095095,1748574650037,-430.0,0.00019726,2]
[363095097,1748574650047,-430.0,0.00019726,2]
[363095098,1748574650056,-1152.96,0.00019726,2]
[363095100,1748574650065,-487.98,0.00019726,2]
[363095102,1748574650073,-430.0,0.00019726,2]
[363095104,1748574650082,-430.0,0.00019726,2]
[363095106,1748574650092,-151.0,0.00019726,2]
[363095108,1748574650100,-2639.67,0.00019726,2]
[363095110,1748574650109,-151.0,0.00019726,2]
[363095112,1748574650117,-430.0,0.00019726,2]
[363095114,1748574650128,-202.39229,0.00019726,2]
[363095116,1748574650136,-430.0,0.00019726,2]
[363095118,1748574650145,-2439.02,0.00019726,2]
[363095120,1748574650154,-475.01678467,0.00019726,2]
[363095122,1748574650162,-430.0,0.00019726,2]
[363095124,1748574650170,-1986.22,0.00019726,2]
[363095126,1748574650179,-624.31,0.00019726,2]
[363095128,1748574650188,-430.0,0.00019726,2]
[363095130,1748574650196,-430.0,0.00019726,2]
[363095132,1748574650205,-672.62,0.00019726,2]
[363095134,1748574650214,-430.0,0.00019726,2]
[363095136,1748574650223,-430.0,0.00019726,2]
[363095137,1748574650232,-430.0,0.00019726,2]
[363095140,1748574650242,-1311.25,0.00019726,2]
[363095141,1748574650251,-429.82932934,0.00019726,2]
[363095143,1748574650260,-430.0,0.00019726,2]
[363095145,1748574650269,-430.0,0.00019726,2]
[363095147,1748574650278,-430.0,0.00019726,2]
[363095150,1748574650288,-430.0,0.00019726,2]
[363095152,1748574650297,-430.0,0.00019726,2]
[363095154,1748574650307,-462.96306544,0.00019726,2]
[363095156,1748574650316,-430.0,0.00019726,2]
[363095158,1748574650325,-500.48080853,0.00019773,2]
[363095160,1748574650334,-500.0,0.00019773,2]
[363095162,1748574650344,-500.0,0.00019773,2]
[363095163,1748574650354,-500.0,0.00019773,2]
[363095165,1748574650364,-500.0,0.00019773,2]
[363095167,1748574650373,-568.474,0.000198,2]
[363095169,1748574650382,-151.0,0.000198,2]
[363095171,1748574650391,-151.0,0.000198,2]
[363095173,1748574650400,-151.0,0.000198,2]
[363095175,1748574650411,-151.0,0.000198,2]
[363095177,1748574650420,-32052.93923324,0.000198,2]
[363095179,1748574650429,-185.085971,0.000198,2]
[363095181,1748574650438,-185.085971,0.000198,2]
[363095183,1748574650447,-22404.09763528,0.000198,2]
[363095185,1748574650457,-151.0,0.000198,2]
[363095187,1748574650470,-365.678702,0.000198,2]
[363095189,1748574650479,-365.678702,0.000198,2]
[363095200,1748574650572,-151.0,0.000198,2]
[363095202,1748574650581,-151.0,0.000198,2]
[363095204,1748574650590,-500.0,0.00019835,2]
[363095206,1748574650600,-205.54088225,0.00019835,2]
[363095208,1748574650608,-167.89135708,0.00019835,2]
[363095210,1748574650618,-151.0,0.00019835,2]
[363095212,1748574650627,-153.9824192,0.00019836,2]
[363095214,1748574650635,-1585.97764974,0.0001984,2]
[363095216,1748574650644,-500.0,0.00019862,2]
[363095218,1748574650653,-151.0,0.00019862,2]
[363095220,1748574650662,-6183.68244265,0.00019887,2]
[363095222,1748574650671,-279.50551248,0.0001989,2]
[363095224,1748574650680,-151.0,0.0001989,2]
[363095226,1748574650689,-4880.67409606,0.00019899,2]
[363095228,1748574650699,-166.50201629,0.000199,2]
[363095230,1748574650707,-1111.31893416,0.000199,2]
[363095232,1748574650717,-5116.41838944,0.000199,2]
[363095234,1748574650726,-151.0,0.00019917,2]
[363095235,1748574650735,-151.0,0.00019945,2]
[363095236,1748574650744,-800.0,0.00019964,2]
[363095237,1748574650753,-245.0,0.00019972,2]
[363095238,1748574650762,-326.78412022,0.00019973,2]
[363095239,1748574650771,-500.0,0.00019973,2]
[363095240,1748574650781,-500.0,0.00019973,2]
[363095241,1748574650790,-500.0,0.00019973,2]
[363095243,1748574650799,-500.0,0.00019973,2]
[363095245,1748574650808,-500.0,0.00019973,2]
[363095247,1748574650818,-500.0,0.00019973,2]
[363095249,1748574650827,-500.0,0.00019973,2]
[363095251,1748574650836,-600.0,0.00019973,2]
[363095253,1748574650847,-500.0,0.00019973,2]
[363095255,1748574650857,-258.578267,0.00019997,2]
[363095257,1748574650866,-258.578267,0.00019997,2]
[363095259,1748574650875,-258.578267,0.00019997,2]
[363095261,1748574650885,-258.578267,0.00019997,2]
[363095263,1748574650895,-509.07937887,0.00019999,2]
[363095265,1748574650904,-151.0,0.00019999,2]
[363095267,1748574650913,-151.0,0.00019999,2]
[363095269,1748574650923,-151.0,0.00019999,2]
[363095271,1748574650932,-258.578267,0.0002,2]
[363095273,1748574650941,-258.578267,0.0002,2]
[363095275,1748574650950,-258.578267,0.0002,2]
[363095277,1748574650960,-258.578267,0.0002,2]
[363095279,1748574650970,-430.0,0.0002,2]
[363095281,1748574650979,-430.0,0.0002,2]
[363095283,1748574650988,-430.0,0.0002,2]
[363095285,1748574650998,-430.0,0.0002,2]
[363095288,1748574651012,-349.85940716,0.0002,2]
[363095290,1748574651020,-430.0,0.0002,2]
[363095292,1748574651029,-430.0,0.0002,2]
[363095294,1748574651038,-430.0,0.0002,2]
[363095296,1748574651048,-430.0,0.0002,2]
[363095298,1748574651058,-430.0,0.0002,2]
[363095300,1748574651067,-430.0,0.0002,2]
[363095302,1748574651076,-430.0,0.0002,2]
[363095304,1748574651085,-430.0,0.0002,2]
[363095306,1748574651095,-430.0,0.0002,2]
[363095308,1748574651105,-430.0,0.0002,2]
[363095310,1748574651114,-430.0,0.0002,2]
[363095312,1748574651126,-430.0,0.0002,2]
[363095314,1748574651135,-216.35662801,0.0002,2]
[363095316,1748574651144,-430.0,0.0002,2]
[363095318,1748574651154,-430.0,0.0002,2]
[363095320,1748574651163,-430.0,0.0002,2]
[363095322,1748574651171,-430.0,0.0002,2]
[363095324,1748574651181,-430.0,0.0002,2]
[363095326,1748574651190,-430.0,0.0002,2]
[363095328,1748574651200,-430.0,0.0002,2]
[363095330,1748574651209,-557.51382518,0.0002,2]
[363095332,1748574651218,-430.0,0.0002,2]
[363095334,1748574651227,-430.0,0.0002,2]
[363095336,1748574651236,-430.0,0.0002,2]
[363095338,1748574651246,-516.86694141,0.0002,2]
[363095339,1748574651257,-430.0,0.0002,2]
[363095342,1748574651267,-388.08608637,0.0002,2]
[363095343,1748574651276,-549.12231042,0.0002,2]
[363095346,1748574651286,-430.0,0.0002,2]
[363095348,1748574651296,-430.0,0.0002,2]
[363095350,1748574651306,-430.0,0.0002,2]
[363095352,1748574651316,-430.0,0.0002,2]
[363095354,1748574651325,-430.0,0.0002,2]
[363095356,1748574651335,-430.0,0.0002,2]
[363095357,1748574651345,-430.0,0.0002,2]
[363095360,1748574651355,-430.0,0.0002,2]
[363095362,1748574651365,-430.0,0.0002,2]
[363095364,1748574651375,-430.0,0.0002,2]
[363095366,1748574651383,-167.00251886,0.0002,2]
[363095368,1748574651392,-437.91950313,0.0002,2]
[363095370,1748574651402,-430.0,0.0002,2]
[363095372,1748574651411,-430.0,0.0002,2]
[363095374,1748574651420,-430.0,0.0002,2]
[363095375,1748574651429,-430.0,0.0002,2]
[363095378,1748574651439,-430.0,0.0002,2]
[363095380,1748574651449,-153.28927229,0.0002,2]
[363095382,1748574651460,-430.0,0.0002,2]
[363095384,1748574651473,-430.0,0.0002,2]
[363095386,1748574651482,-430.0,0.0002,2]
[363095388,1748574651491,-430.0,0.0002,2]
[363095390,1748574651502,-430.0,0.0002,2]
[363095392,1748574651511,-430.0,0.0002,2]
[363095394,1748574651521,-151.0,0.0002,2]
[363095396,1748574651530,-495.41676401,0.0002,2]
[363095398,1748574651540,-430.0,0.0002,2]
[363095400,1748574651549,-500.0,0.0002,2]
[363095402,1748574651558,-151.0,0.0002,2]
[363095404,1748574651567,-994.25,0.0002,2]
[363095406,1748574651577,-430.0,0.0002,2]
[363095408,1748574651586,-450.52945816,0.0002,2]
[363095409,1748574651595,-430.0,0.0002,2]
[363095412,1748574651604,-430.0,0.0002,2]
[363095414,1748574651613,-430.0,0.0002,2]
[363095416,1748574651623,-430.0,0.0002,2]
[363095418,1748574651632,-452.91,0.0002,2]
[363095420,1748574651641,-430.0,0.0002,2]
[363095422,1748574651651,-430.0,0.0002,2]
[363095424,1748574651660,-430.0,0.0002,2]
[363095426,1748574651671,-509.08876119,0.0002,2]
[363095428,1748574651681,-430.0,0.0002,2]
[363095430,1748574651690,-430.0,0.0002,2]
[363095432,1748574651700,-430.0,0.0002,2]
[363095434,1748574651709,-468.93454107,0.0002,2]
[363095436,1748574651720,-430.0,0.0002,2]
[363095438,1748574651730,-430.0,0.0002,2]
[363095440,1748574651740,-732.38,0.0002,2]
[363095442,1748574651749,-430.0,0.0002,2]
[363095444,1748574651758,-430.0,0.0002,2]
[363095446,1748574651768,-430.0,0.0002,2]
[363095448,1748574651777,-153.731127,0.0002,2]
[363095450,1748574651787,-406.13125955,0.0002,2]
[363095452,1748574651796,-430.0,0.0002,2]
[363095454,1748574651805,-430.0,0.0002,2]
[363095456,1748574651814,-430.0,0.0002,2]
[363095458,1748574651824,-430.0,0.0002,2]
[363095460,1748574651833,-430.0,0.0002,2]
[363095462,1748574651843,-151.0,0.0002,2]
[363095464,1748574651852,-151.0,0.0002,2]
[363095467,1748574651863,-151.0,0.0002,2]
[363095468,1748574651872,-430.0,0.0002,2]
[363095470,1748574651882,-430.0,0.0002,2]
[363095472,1748574651891,-430.0,0.0002,2]
[363095474,1748574651900,-157.710497,0.0002,2]
[363095476,1748574651910,-157.710497,0.0002,2]
[363095479,1748574651920,-481.65,0.0002,2]
[363095481,1748574651928,-430.0,0.0002,2]
[363095483,1748574651937,-151.0,0.0002,2]
[363095485,1748574651946,-599.6,0.0002,2]
[363095487,1748574651955,-430.0,0.0002,2]
[363095489,1748574651963,-430.0,0.0002,2]
[363095491,1748574651972,-430.0,0.0002,2]
[363095493,1748574651980,-452.10912021,0.0002,2]
[363095495,1748574651989,-200.726289,0.0002,2]
[363095497,1748574651998,-430.0,0.0002,2]
[363095499,1748574652006,-430.0,0.0002,2]
[363095501,1748574652015,-430.0,0.0002,2]
[363095503,1748574652023,-430.0,0.0002,2]
[363095505,1748574652032,-430.0,0.0002,2]
[363095517,1748574652120,-544.62658673,0.0002,2]
[363095519,1748574652130,-430.0,0.0002,2]
[363095521,1748574652139,-430.0,0.0002,2]
[363095523,1748574652149,-430.0,0.0002,2]
[363095525,1748574652158,-1527.315921,0.0002,2]
[363095527,1748574652167,-430.0,0.0002,2]
[363095529,1748574652176,-430.0,0.0002,2]
[363095531,1748574652186,-1527.315921,0.0002,2]
[363095533,1748574652195,-430.0,0.0002,2]
[363095535,1748574652204,-430.0,0.0002,2]
[363095537,1748574652213,-430.0,0.0002,2]
[363095539,1748574652222,-430.0,0.0002,2]
[363095541,1748574652232,-692.92,0.0002,2]
[363095543,1748574652242,-430.0,0.0002,2]
[363095545,1748574652250,-524.59,0.0002,2]
[363095547,1748574652259,-1006.77,0.0002,2]
[363095549,1748574652268,-905.04,0.0002,2]
[363095551,1748574652277,-277.784087,0.0002,2]
[363095553,1748574652287,-300.37208109,0.0002,2]
[363095555,1748574652296,-430.0,0.0002,2]
[363095557,1748574652305,-1493.98,0.0002,2]
[363095559,1748574652314,-277.784087,0.0002,2]
[363095561,1748574652323,-430.0,0.0002,2]
[363095563,1748574652332,-151.0,0.0002,2]
[363095565,1748574652341,-430.0,0.0002,2]
[363095567,1748574652350,-151.0,0.0002,2]
[363095569,1748574652359,-151.0,0.0002,2]
[363095571,1748574652368,-858.72,0.0002,2]
[363095573,1748574652377,-430.0,0.0002,2]
[363095575,1748574652386,-430.0,0.0002,2]
[363095577,1748574652395,-430.0,0.0002,2]
[363095579,1748574652403,-430.0,0.0002,2]
[363095581,1748574652413,-4072.26,0.0002,2]
[363095583,1748574652423,-430.0,0.0002,2]
[363095585,1748574652432,-502.0471868,0.0002,2]
[363095587,1748574652441,-535.19,0.0002,2]
[363095589,1748574652451,-430.0,0.0002,2]
[363095591,1748574652461,-430.0,0.0002,2]
[363095593,1748574652473,-446.58581294,0.0002,2]
[363095595,1748574652484,-430.0,0.0002,2]
[363095597,1748574652494,-151.0,0.0002,2]
[363095599,1748574652503,-430.0,0.0002,2]
[363095601,1748574652512,-461.01516362,0.0002,2]
[363095602,1748574652522,-430.0,0.0002,2]
[363095605,1748574652531,-430.0,0.0002,2]
[363095607,1748574652541,-843.64,0.0002,2]
[363095608,1748574652550,-2045.26,0.0002,2]
[363095610,1748574652560,-151.0,0.0002,2]
[363095612,1748574652569,-430.0,0.0002,2]
[363095614,1748574652578,-430.0,0.0002,2]
[363095616,1748574652587,-4939.27,0.0002,2]
[363095619,1748574652597,-957.35,0.0002,2]
[363095621,1748574652607,-430.0,0.0002,2]
[363095623,1748574652616,-493.27,0.0002,2]
[363095625,1748574652625,-430.0,0.0002,2]
[363095627,1748574652634,-430.0,0.0002,2]
[363095629,1748574652643,-430.0,0.0002,2]
[363095631,1748574652652,-430.0,0.0002,2]
[363095633,1748574652661,-152.476461,0.0002,2]
[363095635,1748574652670,-430.0,0.0002,2]
[363095637,1748574652679,-3487.81,0.0002,2]
[363095639,1748574652688,-430.0,0.0002,2]
[363095640,1748574652697,-200000.0,0.0002,2]
[363095642,1748574652707,-151.0,0.0002,2]
[363095645,1748574652717,-438.75,0.0002,2]
[363095647,1748574652726,-151.0,0.0002,2]
[363095649,1748574652736,-5337.96,0.0002,2]
[363095651,1748574652746,-430.0,0.0002,2]
[363095653,1748574652754,-439.20907439,0.0002,2]
[363095655,1748574652763,-430.0,0.0002,2]
[363095656,1748574652773,-6762.53,0.0002,2]
[363095659,1748574652783,-430.0,0.0002,2]
[363095660,1748574652792,-439.0016175,0.0002,2]
[363095662,1748574652801,-430.0,0.0002,2]
[363095664,1748574652811,-197.65911882,0.0002,2]
[363095666,1748574652820,-430.0,0.0002,2]
[363095668,1748574652829,-430.0,0.0002,2]
[363095670,1748574652838,-569.59,0.0002,2]
[363095672,1748574652848,-1345.67,0.0002,2]
[363095674,1748574652858,-330.55645354,0.0002,2]
[363095676,1748574652868,-204.688878,0.0002,2]
[363095678,1748574652877,-430.0,0.0002,2]
[363095680,1748574652887,-204.688878,0.0002,2]
[363095682,1748574652896,-1695.92,0.0002,2]
[363095684,1748574652906,-430.0,0.0002,2]
[363095686,1748574652915,-867.05,0.0002,2]
[363095688,1748574652924,-430.0,0.0002,2]
[363095690,1748574652933,-151.0,0.0002,2]
[363095692,1748574652943,-1328.6,0.0002,2]
[363095694,1748574652952,-434.70349535,0.0002,2]
[363095696,1748574652962,-430.0,0.0002,2]
[363095698,1748574652971,-728.43,0.0002,2]
[363095700,1748574652981,-430.0,0.0002,2]
[363095702,1748574652990,-795.95,0.0002,2]
[363095704,1748574653000,-672.43,0.0002,2]
[363095706,1748574653009,-430.0,0.0002,2]
[363095708,1748574653018,-430.0,0.0002,2]
[363095710,1748574653027,-442.16986359,0.0002,2]